Cogmind - Beta 17.1 @@@ ROGUE MODE // 2026.09.04 @ 21:01:59 Player: Finn Result: Destroyed by G-34 Mercenary with Small Laser Performance ------------- Evolutions (1) 500 Regions Visited (2) 400 Robots Destroyed (25) 125 Value Destroyed (515) 515 Prototype IDs (2) 40 Alien Tech Used (0) 0 Bonus (0) 0 TOTAL SCORE: 1580 Bonus ------- None Cogmind --------- Core Integrity 0/400 Matter 181/300 Energy 73/100 System Corruption 0% Temperature Cool (6) Movement Core (1400) Ox27 Location -9/Materials Parts ------- > --- POWER (1) -------- (None) > --- PROPULSION (3) --- (None) > --- UTILITY (3) ------ Huge Storage Unit Visual Processing Unit ECM Suite > --- WEAPON (2) ------- Scythe > --- INVENTORY (25) --- Ion Engine Light Ion Engine Light Ion Engine Propulsion Shielding Peak State ------------ > --- POWER ------------ Ion Engine > --- PROPULSION ------- Aluminum Leg Aluminum Leg > --- UTILITY ---------- Huge Storage Unit Visual Processing Unit ECM Suite > --- WEAPON ----------- Light Assault Rifle > --- INVENTORY -------- Light Ion Engine Light Ion Engine Light Ion Engine Propulsion Shielding [Rating: 8] Favorites ----------- Power Ion Engine Engine Ion Engine Propulsion Light Treads Treads Light Treads Leg Aluminum Leg Wheel Wheel Utility Huge Storage Unit Device ECM Suite Storage Huge Storage Unit Processor Visual Processing Unit Weapon Light Assault Rifle Ballistic Gun Light Assault Rifle Slashing Weapon Scythe Build | -11 -10 -9 ------- Run | Yrd Mat Mat Slots Evolved 2 | . . 2 Power . | . . . Propulsion 1 | . . 1 Utility 1 | . . 1 Weapon . | . . . Parts Attached 18 | 6 6 6 Power 3 | 1 1 1 Engine 3 | 1 1 1 Core . | . . . Reactor . | . . . Propulsion 5 | 2 1 2 Treads 2 | 2 . . Leg 2 | . . 2 Wheel 1 | . 1 . Hover . | . . . Flight . | . . . Utility 4 | 1 2 1 Device 1 | . 1 . Storage 2 | 1 1 . Processor 1 | . . 1 Hackware . | . . . Protection . | . . . Artifact . | . . . Weapon 6 | 2 2 2 Energy Gun . | . . . Energy Cannon . | . . . Ballistic Gun 5 | 2 2 1 Ballistic Cannon . | . . . Launcher . | . . . Special Weapon . | . . . Impact Weapon . | . . . Slashing Weapon 1 | . . 1 Piercing Weapon . | . . . Special Melee Weapon . | . . . Unidentified Prototypes . | . . . Parts Lost 12 | . 6 6 Power 2 | . 1 1 Propulsion 5 | . 2 3 Utility . | . . . Weapon 5 | . 3 2 Highest Loss Streak 5 | . 5 4 To Critical Strikes . | . . . Average Backups 4 | 1 5 3 Power 1 | . . 2 Propulsion . | . . . Utility 1 | . 1 1 Weapon 1 | . 1 . Tool/Special . | . . . Unused Backups 3 | . . 3 Power 2 | . . 2 Propulsion . | . . . Utility 1 | . . 1 Weapon . | . . . Tool/Special . | . . . Average Slot Usage (%) 77 | . 82 64 Engine 12 | . 13 10 Treads 18 | . 24 . Wheel 1 | . 1 2 Device 3 | . 1 11 Storage 13 | . 14 11 Processor 2 | . . 10 Ballistic Gun 24 | . 27 16 Peak Build Rating 8 | 6 7 8 Average Rating 6 | 3 5 6 On Entrance 3 | . 6 5 Avg Prop Armor Cover (%) . | . . . Naked Turns . | . . . Heaviest Build 89 | 13 89 89 Greatest Support 40 | 40 40 20 Greatest Overweight (x) 29 | . 27 29 Average Overweight (x) 4 | . 2 13 Largest Inventory Capacity 25 | 8 25 25 Average Capacity 23 | 6 23 25 Most Carried 8 | 4 8 6 Average Carried 4 | 2 5 3 Final Capacity 25 | 8 25 25 Final Carried 4 | 2 3 4 Class Distribution -------------------- 99% | Mutant Dominant Class ---------------- Mutant | -10/Materials Mutant | -9/Materials Resources | -11 -10 -9 ----------- Run | Yrd Mat Mat Matter Collected 513 | 129 321 63 Remotely . | . . . Salvage Created 650 | . 507 143 Parts 47 | . 36 11 Haulers Intercepted . | . . . Recyclers Shooed . | . . . Parts Field Recycled . | . . . Retrieved Matter . | . . . Parts Self-Destructed . | . . . Prevented . | . . . Parts Restored . | . . . Kills | -11 -10 -9 ------- Run | Yrd Mat Mat Combat Hostiles Destroyed 23 | . 17 6 Guns 23 | . 17 6 Classes Destroyed 3 | . 3 . Watcher 2 | . 2 . Swarmer 13 | . 9 4 Grunt 10 | . 8 2 Best Kill Streak 4 | . 3 4 Combat Bots Only 4 | . 3 4 Max Kills in Single Turn 1 | . 1 1 Gunslinging . | . . . Exploded . | . . . Melee . | . . . Uniques/NPCs Destroyed . | . . . Combat | -11 -10 -9 -------- Run | Yrd Mat Mat Hostile Shots Fired 240 | . 99 141 Missed 66 | . 24 42 Hits 174 | . 75 99 Projectile 174 | . 75 99 Damage Taken 1839 | . 804 1035 Core 539 | . 129 410 Absorbed by Shields . | . . . Core Remaining (%) 74 | 100 48 . Volleys Fired 112 | . 77 35 Largest 2 | . 2 2 Hottest 40 | . 40 40 Shots Fired 196 | . 149 47 Gun 196 | . 149 47 Cannon . | . . . Launcher . | . . . Special . | . . . Kinetic 196 | . 149 47 Thermal . | . . . Explosive . | . . . Electromagnetic . | . . . Robot Hit Streak 8 | . 8 8 Robot Miss Streak 3 | . 3 3 Penetration Max . | . . . Secondary Targets 2 | . 1 1 Max Gunslinging Chain 1 | . 1 1 Shots Hit Robots 119 | . 91 28 Core Hits 48 | . 34 14 Critical Kills . | . . . Critical Parts Destroyed 2 | . 1 1 Critical Strikes 3 | . 1 2 Destroy 2 | . 1 1 Sever 1 | . . 1 Melee Attacks 1 | . . 1 Impact . | . . . Slashing 1 | . . 1 Piercing . | . . . Sneak Attacks . | . . . Combat Hostiles . | . . . Follow-up Attacks . | . . . Damage Inflicted 1174 | . 903 271 Guns 1142 | . 903 239 Cannons . | . . . Explosions . | . . . Melee 32 | . . 32 Ramming . | . . . Kinetic 1142 | . 903 239 Thermal . | . . . Explosive . | . . . Electromagnetic . | . . . Impact . | . . . Slashing 32 | . . 32 Piercing . | . . . Highest Corruption . | . . . Average Corruption . | . . . Corruption Purged . | . . . Corruption Blocked . | . . . Overload Shots . | . . . Overflow Damage . | . . . Projectiles . | . . . Explosions . | . . . Melee . | . . . Knockbacks . | . . . Impact . | . . . Kinetic . | . . . Secondary . | . . . Self-Inflicted Damage . | . . . Shots . | . . . Rammed . | . . . Targets Rammed . | . . . Kicked . | . . . Crushed . | . . . Highest Temperature 18 | . 18 9 Average Temperature 7 | . 7 3 Received Heat Transfer 825 | . 345 480 Siege Activations . | . . . Martial Activations . | . . . Shielding Activations . | . . . Robots Disrupted . | . . . Combat Hostiles . | . . . Robots Corrupted . | . . . Combat Hostiles . | . . . Parts Fried . | . . . Impact Corruptions . | . . . Robots Melted . | . . . Combat Hostiles . | . . . Parts Melted . | . . . Heat Transferred . | . . . Parts Sabotaged . | . . . Parts Stolen . | . . . Parts Stripped . | . . . Power Chain Reactions . | . . . Alert | -11 -10 -9 ------- Run | Yrd Mat Mat Maximum Alert Level . | . . . Low Security (%) 100 | 100 100 100 Level 1 . | . . . Level 2 . | . . . Level 3 . | . . . Level 4 . | . . . Level 5 . | . . . High Security . | . . . Max Security . | . . . Peak Influence 160 | . 160 70 Initial 60 | . . 60 Average 37 | . 47 15 Influence Increases 680 | . 528 152 Destroy 0b10 Robot/C 460 | . 340 120 Destroy 0b10 Robot/NC 10 | . 10 . Destroy Leader 104 | . 84 20 Successful Hack 31 | . 19 12 Lose Combat Pursuer 75 | . 75 . Influence Decreases 680 | . 384 296 Entered New Map 84 | . . 84 Time Decay 506 | . 324 182 Lost Part 90 | . 60 30 Squads Dispatched 5 | . 4 1 Investigation 1 | . 1 . Extermination . | . . . Reinforcement 4 | . 3 1 Assault . | . . . Garrison . | . . . Intercept . | . . . Searches Triggered . | . . . Construction Impeded . | . . . Haulers Reinforced . | . . . Active Scanning Responses . | . . . Cargo Convoy Interrupts . | . . . Stealth | -11 -10 -9 --------- Run | Yrd Mat Mat Distress Signals 6 | . 2 4 Communications Jammed . | . . . Distress Signals . | . . . Times Spotted 52 | . 37 15 Peak Tracking Total 6 | . 4 6 Tactical Retreats 7 | . 5 2 ECM-based Alert Blocks 2 | . . 2 Traps | -11 -10 -9 ------- Run | Yrd Mat Mat Traps Triggered . | . . . Indirectly . | . . . Trap Hack Attempts . | . . . Triggered . | . . . Disarmed . | . . . Reprogrammed . | . . . Reused . | . . . Traps Extracted . | . . . Installed . | . . . Triggered . | . . . Machines | -11 -10 -9 ---------- Run | Yrd Mat Mat Machines Disabled . | . . . Max in Single Turn . | . . . Machines Repaired . | . . . Machines Dismantled . | . . . Machines Sabotaged . | . . . Overloaded Fab Kills . | . . . Hacking | -11 -10 -9 --------- Run | Yrd Mat Mat Machines Accessed 6 | . 5 1 Terminals 3 | . 3 . Fabricators . | . . . Repair Stations . | . . . Recycling Units 2 | . 2 . Scanalyzers 1 | . . 1 Garrison Access . | . . . Total Hacks 13 | . 12 1 Successful 7 | . 6 1 Failed 6 | . 6 . Catastrophic . | . . . Database Lockouts . | . . . Manual . | . . . Terminals 5 | . 5 . Fabricators . | . . . Repair Stations . | . . . Recycling Units 7 | . 7 . Scanalyzers 1 | . . 1 Garrison Access . | . . . Terminal Hacks 5 | . 5 . Prototype ID Bank 1 | . 1 . Branch Access Points 1 | . 1 . Emergency Access Points 1 | . 1 . Scanalyzer Index 1 | . 1 . Registered Components 1 | . 1 . Fabricator Hacks . | . . . Repair Station Hacks . | . . . Recycling Unit Hacks 1 | . 1 . Retrieve Components 1 | . 1 . Scanalyzer 1 | . . 1 Retrieve Study 1 | . . 1 Garrison Access Hacks . | . . . Unauthorized Hacks . | . . . Terminals . | . . . Fabricators . | . . . Repair Stations . | . . . Recycling Units . | . . . Scanalyzers . | . . . Garrison Access . | . . . Data Cores Recovered . | . . . Used . | . . . Hacking Detections 4 | . 4 . Full Trace Events 1 | . 1 . Feedback Events . | . . . Feedback Blocked . | . . . Robot Schematics Acquired . | . . . Robots Built . | . . . Authchips . | . . . Time . | . . . Total Robot Build Rating . | . . . Part Schematics Acquired . | . . . Parts Built . | . . . Authchips . | . . . Time . | . . . Total Part Build Rating . | . . . Part Studies Acquired 1 | . . 1 Parts Repaired . | . . . Time . | . . . Parts Recycled . | . . . Recycled Matter . | . . . Retrieved Matter . | . . . Retrieved Components 10 | . 10 . Parts Scanalyzed . | . . . Part Schematics Acquired . | . . . Parts Damaged . | . . . Bothacking | -11 -10 -9 ------------ Run | Yrd Mat Mat Used RIF Installer . | . . . Robots Hacked . | . . . Non-combat . | . . . Combat . | . . . Robot Hacks Applied . | . . . Relay Couplers Released . | . . . Fabnet Peak Effective % . | . . . Robots Rewired . | . . . Allies Hacked . | . . . Hacks Repelled . | . . . Allies | -11 -10 -9 -------- Run | Yrd Mat Mat Total Allies . | . . . Largest Group . | . . . Highest-Rated Group . | . . . Highest-Rated Ally . | . . . Total Orders . | . . . Ally Attacks . | . . . Total Damage . | . . . Kills . | . . . Allies Corrupted . | . . . Allies Melted . | . . . Intel | -11 -10 -9 ------- Run | Yrd Mat Mat Active Infowar (turns) 1169 | . 216 953 Optics 926 | . . 926 ECM 1169 | . 216 953 Robot Analysis Total . | . . . Derelict Logs Recovered . | . . . Drone Launches . | . . . Drone Recoveries . | . . . Exploration | -11 -10 -9 ------------- Run | Yrd Mat Mat Turns Passed 3686 | 64 2669 953 Spaces Moved 964 | 36 782 146 Core 52 | 6 4 42 Treads 720 | 30 690 . Legs 15 | . . 15 Wheels 177 | . 88 89 Hover . | . . . Flight . | . . . Fastest Speed 50 | 50 160 190 Average Speed 325 | 141 284 591 Slowest Speed 1500 | 160 1400 1500 Overloaded Moves . | . . . Propulsion Burnouts . | . . . Robots Hopped . | . . . Potential Cave-ins . | . . . Cave-ins Triggered . | . . . Exploration Rate (%) 36 | 3 93 12 Regions Visited 2 Branch Regions . Pre-discovered Areas . | . . . Known Exits Taken . | . . . Unknown Exits Taken 2 | 1 1 . Scrap Searched . | . . . Spaces Dug . | . . . Terrain Destroyed . | . . . Melee . | . . . Projectile . | . . . AOE . | . . . Terrain Rammed . | . . . Walls Destroyed . | . . . Machines Disabled . | . . . Actions | -11 -10 -9 --------- Run | Yrd Mat Mat Total 1343 | 49 1099 195 Wait 228 | . 227 1 Move 962 | 35 781 146 Hop . | . . . Pick Up 21 | 8 7 6 Fast Attach . | . . . Attach 17 | 6 6 5 Detach . | . . . Swap 1 | . . 1 Drop 1 | . 1 . Fire 112 | . 77 35 Melee 1 | . . 1 Ram . | . . . Kick . | . . . Crush . | . . . Escape Stasis . | . . . Rewire . | . . . Trap . | . . . Miscellaneous . | . . . Route ------- -11/Scrapyard -10/Materials (discovered 6 exits: *Mat x3 / *Min x2 / [*Sub]) -9/Materials History --------- Turn | Location | Event 14 | -11/Scrapyard | Discovered new exit (range 15) 65 | -11/Scrapyard | Entered Materials 181 | -10/Materials | Discovered new exit (range 15) 313 | -10/Materials | Build established: Mutant 465 | -10/Materials | Discovered new exit (range 16) 613 | -10/Materials | Discovered new exit (range 15) 1939 | -10/Materials | Identified exit to Mines 2064 | -10/Materials | Discovered new exit (range 4) 2444 | -10/Materials | Core integrity fell below 50% 2482 | -10/Materials | Lost 5 parts (1p2n2w) 2560 | -10/Materials | Discovered new exit (range 3) 2598 | -10/Materials | Discovered new exit (range 5) 2734 | -10/Materials | Entered another Materials area 2734 | -9/Materials | Evolved 2 slots: Propulsion x1, Utility x1 3648 | -9/Materials | Core integrity fell below 50% 3670 | -9/Materials | Core integrity fell below 20% 3672 | -9/Materials | Lost 4 parts (1p2n1w) 3687 | -9/Materials | Destroyed by G-34 Mercenary with Small Laser Last Messages --------------- 03160_ K-01 Serf collects debris. 03176_ K-01 Serf cleans the Processing Tank. 03456_ Acquired 33 matter. 03458_ W-16 Scout sends out distress signal. 03500_ Lgt. Assault Rifle destroyed. 03508_ A-02 Transporter destroyed. 03510_ G-34 Mercenary suffers critical hit (Destroy). 03510_ Destroyed Sml. Laser. 03514_ G-34 Mercenary destroyed. 03540_ Acquired Aluminum Leg. 03542_ W-16 Scout sends out distress signal. 03556_ Acquired Aluminum Leg. 03596_ K-01 Serf collects debris. 03607_ Lgt. Assault Rifle destroyed. 03625_ Aluminum Leg destroyed. 03641_ Lgt. Ion Engine destroyed. 03655_ Acquired Scythe. 03685_ G-34 Mercenary Ion Engine severed. Map ----- +----------------------------------------------------+ | ???????????????? #???# | | ????????????????"" "T"[ #???# | | ????????????????"" % #???# | | ????????????????"" = #???# ########### | | ???????????????""" #???# #?????????? | | ?????????????""""" #???# #?????????? | | ??????????????? #???# #?????????? | | ????????????????? #???# #?????????? | | ??????????????????? !!=#???# #?????????? | | ?????????????????????# !%!#??## ##????????? | | ?????????????????????# !!!#### #????????? | | ???????????# # %! #????????? | | ???????????# + " #????????? | | ???????????# # #????????? | | ???????????# ????# ######+### #????????? | | ???????????# ????????# ## #######????????? | | ?????????????????????# ## """"" #??????????????? | | ?????????????????????# ## """"" #??????????????? | | ?????????????????????# ## """"" #??????????????? | | ?????????????????????# ## #??????????????? | | ???????????????####### ## """"" #??????????????? | | ???????????# !!] + ## """"" #??????????????? | | ???????????#= # ## """"" #??????????????? | | ???????????# ! ?#w ## #??????????????? | | ???????????# ??# ##########??????????????? | | ???????????#######???#k g@ /#???????????????????? | | ?????????????????????#u //#???????????????????? | | ?????????????????????# g [[#???????????????????? | | ?????????????????????#a [[#???????????????????? | | ?????????????????????# ==#???????????????????? | | ?????????????????????# ==#???????????????????? | | ?????????????????????# k#####???????????????????? | | ?????????????????????#r ???????????????????????? | | ?????????????????????# ???????????????????????? | | ?????????????????????# #???????????????????????? | | ?????????????????????# ????????????????????????? | | ?????????????????????# ????????????????????????? | | ?????????????????????# ????????????????????????? | | ?????????????????????#k ????????????????????????? | | ????????????????????? ????????????????????????? | | ????????????????????? ????????????????????????? | | ????????????????????? ????????????????????????? | | ??????????????????????? ?????????????????????????? | | ?????????????????????????????????????????????????? | | ?????????????????????????????????????????????????? | | ?????????????????????????????????????????????????? | | ?????????????????????????????????????????????????? | | ?????????????????????????????????????????????????? | | ?????????????????????????????????????????????????? | | ?????????????????????????????????????????????????? | +----------------------------------------------------+ Best States ------------- Heat Dissipation 28 Energy Generation 10 Energy Capacity 250 Matter Stores 218 Matter Capacity 300 Sight Range 18 Terrain Scan Density 10 ECM Strength 1 Evasion (%) 40 Recoil Reduction 2 Item Schematics ----------------- None Robot Schematics ------------------ None Fabricated ------------ Nothing Repaired ---------- Nothing Studied --------- Wheel | -9/Materials | Hacked Alien Tech Used ----------------- None Achievements -------------- None Challenges ------------ None Game ------ Seed MediumVortexWell Manual? 0 Play Time 00:12:08 Cumulative 31.9 hours Start 2026.09.04 @ 20:29:34 End 2026.09.04 @ 21:01:59 Sessions 1 Manual Loads 0 Difficulty Rogue Special Mode None Game No. 79 Rogue 62 Adventurer 15 Explorer 2 Win Type - Total 0 Types 0/0/0/0/0/0/0/0/0/0 Lore% 25 Gallery% 25 Achievement% 21 Wizard Run 0 Options --------- Layout 1 ASCII 0 Keyboard 0 Movement Mouse Keybinds 0 Fullscreen 1 Font 24/Smallcaps Map View 50x35 Zoom Use 0% Tactical HUD 1 Map Filters NONE Filters NONE Steam 1 RUN: b5569434-f443-4ed2-8b80-b88e57166932